[Event "*** SCC Grand Prix: Titled Tuesday Blitz"]
[Site "Chess.com"]
[Date "2020.08.25"]
[Round "7"]
[White "GigaQuparadze"]
[Black "albi1999"]
[Result "0-1"]
[WhiteElo "2812"]
[BlackElo "2569"]
[TimeControl "180+1"]
[EndTime "11:22:38 PDT"]
[Termination "albi1999 won by resignation"]

1. e4 {[%clk 0:03:00.9]} 1... c6 {[%clk 0:02:58]} 2. d4 {[%clk 0:03:00.5]} 2...
d5 {[%clk 0:02:58.9]} 3. Nc3 {[%clk 0:03:01.4]} 3... dxe4 {[%clk 0:02:58.7]} 4.
Nxe4 {[%clk 0:03:02.3]} 4... Bf5 {[%clk 0:02:59.1]} 5. Ng3 {[%clk 0:03:02.1]}
5... Bg6 {[%clk 0:02:58.2]} 6. h4 {[%clk 0:03:02.6]} 6... h6 {[%clk 0:02:57.7]}
7. Nf3 {[%clk 0:03:03.1]} 7... Nd7 {[%clk 0:02:57]} 8. h5 {[%clk 0:03:03.1]}
8... Bh7 {[%clk 0:02:56.5]} 9. Bd3 {[%clk 0:03:04]} 9... Bxd3 {[%clk 0:02:56.3]}
10. Qxd3 {[%clk 0:03:04.9]} 10... e6 {[%clk 0:02:57.2]} 11. Bf4 {[%clk
0:03:04.4]} 11... Bb4+ {[%clk 0:02:57]} 12. c3 {[%clk 0:03:03.3]} 12... Be7
{[%clk 0:02:55.4]} 13. Ne4 {[%clk 0:02:54.5]} 13... Ndf6 {[%clk 0:02:44.8]} 14.
Ne5 {[%clk 0:02:49.7]} 14... Qd5 {[%clk 0:02:38.3]} 15. f3 {[%clk 0:02:46.6]}
15... Nd7 {[%clk 0:02:10.6]} 16. O-O {[%clk 0:02:33.7]} 16... Ngf6 {[%clk
0:02:06.6]} 17. c4 {[%clk 0:02:33.4]} 17... Qa5 {[%clk 0:02:05.6]} 18. Nxd7
{[%clk 0:02:25.1]} 18... Nxd7 {[%clk 0:02:03.3]} 19. c5 {[%clk 0:02:25.4]} 19...
O-O {[%clk 0:01:58.3]} 20. b4 {[%clk 0:02:25.4]} 20... Qd8 {[%clk 0:01:56.2]}
21. g4 {[%clk 0:02:24.3]} 21... Nf6 {[%clk 0:01:50.6]} 22. Nd6 {[%clk
0:02:17.4]} 22... Qd7 {[%clk 0:01:45.3]} 23. Be5 {[%clk 0:02:05.2]} 23... Rfd8
{[%clk 0:01:36.7]} 24. Rad1 {[%clk 0:02:03.8]} 24... Bxd6 {[%clk 0:01:32.9]} 25.
Bxd6 {[%clk 0:02:02.6]} 25... Ne8 {[%clk 0:01:33.4]} 26. Be5 {[%clk 0:02:02.8]}
26... Qd5 {[%clk 0:01:29.7]} 27. a3 {[%clk 0:01:58.9]} 27... Rd7 {[%clk
0:01:29.6]} 28. Qe3 {[%clk 0:01:49.6]} 28... Rad8 {[%clk 0:01:28]} 29. Rfe1
{[%clk 0:01:46.4]} 29... Kh7 {[%clk 0:01:15.7]} 30. Qd3+ {[%clk 0:01:26.2]}
30... Kg8 {[%clk 0:01:15.5]} 31. Qe3 {[%clk 0:01:24.9]} 31... Kh7 {[%clk
0:01:15.7]} 32. Bg3 {[%clk 0:01:21.2]} 32... Nf6 {[%clk 0:01:09.9]} 33. Bf2
{[%clk 0:01:19.9]} 33... Qg5 {[%clk 0:01:03.4]} 34. Qxg5 {[%clk 0:01:13.2]}
34... hxg5 {[%clk 0:01:04.3]} 35. Re5 {[%clk 0:01:13.2]} 35... Rd5 {[%clk
0:01:02.4]} 36. Rde1 {[%clk 0:01:13.4]} 36... Rxe5 {[%clk 0:00:59.7]} 37. Rxe5
{[%clk 0:01:14.3]} 37... Rd5 {[%clk 0:00:59.4]} 38. Re1 {[%clk 0:01:12.1]} 38...
Ne8 {[%clk 0:00:53.9]} 39. a4 {[%clk 0:01:08.8]} 39... a6 {[%clk 0:00:52.8]} 40.
Rb1 {[%clk 0:01:07.3]} 40... Nc7 {[%clk 0:00:49.5]} 41. Kf1 {[%clk 0:01:05.7]}
41... g6 {[%clk 0:00:49.2]} 42. hxg6+ {[%clk 0:01:04.9]} 42... Kxg6 {[%clk
0:00:50.1]} 43. Ke2 {[%clk 0:01:05.1]} 43... f6 {[%clk 0:00:49.1]} 44. Bg3
{[%clk 0:01:03.8]} 44... Ne8 {[%clk 0:00:46.1]} 45. Ke3 {[%clk 0:01:03.3]} 45...
Rd7 {[%clk 0:00:37.6]} 46. b5 {[%clk 0:01:02.3]} 46... axb5 {[%clk 0:00:38.5]}
47. axb5 {[%clk 0:01:03.2]} 47... Nc7 {[%clk 0:00:39.1]} 48. Bxc7 {[%clk
0:01:02.2]} 48... Rxc7 {[%clk 0:00:40]} 49. b6 {[%clk 0:01:01.1]} 49... Re7
{[%clk 0:00:34.5]} 50. Ra1 {[%clk 0:01:00.6]} 50... e5 {[%clk 0:00:34.9]} 51.
Ra7 {[%clk 0:00:58.6]} 51... f5 {[%clk 0:00:32.3]} 52. dxe5 {[%clk 0:00:54.6]}
52... Rxe5+ {[%clk 0:00:33.2]} 53. Kd4 {[%clk 0:00:54.6]} 53... Rd5+ {[%clk
0:00:33.6]} 54. Kc4 {[%clk 0:00:54.4]} 54... Rd7 {[%clk 0:00:34.2]} 55. Ra8
{[%clk 0:00:54.3]} 55... fxg4 {[%clk 0:00:34.4]} 56. fxg4 {[%clk 0:00:55.2]}
56... Kf6 {[%clk 0:00:34.6]} 57. Rf8+ {[%clk 0:00:54.4]} 57... Kg6 {[%clk
0:00:27.6]} 58. Ra8 {[%clk 0:00:40.4]} 58... Rf7 {[%clk 0:00:25.9]} 59. Rc8
{[%clk 0:00:37]} 59... Kf6 {[%clk 0:00:20]} 60. Rc7 {[%clk 0:00:36.5]} 60... Ke6
{[%clk 0:00:20]} 61. Rc8 {[%clk 0:00:32.3]} 61... Rf4+ {[%clk 0:00:19.6]} 62.
Kc3 {[%clk 0:00:32.7]} 62... Kd5 {[%clk 0:00:20.2]} 63. Rc7 {[%clk 0:00:31.3]}
63... Kxc5 {[%clk 0:00:20.6]} 64. Rxb7 {[%clk 0:00:31.8]} 64... Rxg4 {[%clk
0:00:21.1]} 65. Rb8 {[%clk 0:00:31.6]} 65... Rg3+ {[%clk 0:00:19.4]} 66. Kc2
{[%clk 0:00:31.4]} 66... Rg2+ {[%clk 0:00:18.1]} 67. Kd3 {[%clk 0:00:30.2]}
67... Rb2 {[%clk 0:00:17.2]} 68. b7 {[%clk 0:00:30.4]} 68... Kb6 {[%clk
0:00:16.2]} 69. Kc3 {[%clk 0:00:30]} 69... Rb5 {[%clk 0:00:15.7]} 70. Kd4 {[%clk
0:00:23.4]} 70... Kc7 {[%clk 0:00:15.5]} 71. Rg8 {[%clk 0:00:23]} 71... Kxb7
{[%clk 0:00:15.5]} 72. Rg6 {[%clk 0:00:23.9]} 72... Rd5+ {[%clk 0:00:15.6]} 73.
Ke4 {[%clk 0:00:24.1]} 73... Kb6 {[%clk 0:00:16.5]} 74. Ke3 {[%clk 0:00:24.7]}
74... Kb5 {[%clk 0:00:16.8]} 75. Ke4 {[%clk 0:00:25.1]} 75... Rc5 {[%clk
0:00:17]} 76. Kd4 {[%clk 0:00:25.3]} 76... Rf5 {[%clk 0:00:16.9]} 77. Ke4 {[%clk
0:00:23.6]} 77... Rd5 {[%clk 0:00:14.2]} 78. Rf6 {[%clk 0:00:20.1]} 78... Kc5
{[%clk 0:00:13.6]} 79. Rg6 {[%clk 0:00:19.8]} 79... Rd4+ {[%clk 0:00:13.4]} 80.
Kf5 {[%clk 0:00:18.6]} 80... g4 {[%clk 0:00:13.7]} 81. Ke5 {[%clk 0:00:18.9]}
81... Ra4 {[%clk 0:00:13]} 82. Rg5 {[%clk 0:00:17.6]} 82... Kb5 {[%clk
0:00:12.9]} 83. Kd6+ {[%clk 0:00:17.5]} 83... Kb6 {[%clk 0:00:13.4]} 84. Rg8
{[%clk 0:00:17.6]} 84... Rd4+ {[%clk 0:00:13.8]} 85. Ke5 {[%clk 0:00:17.4]}
85... c5 {[%clk 0:00:14.7]} 86. Rb8+ {[%clk 0:00:16.6]} 86... Kc6 {[%clk
0:00:15.1]} 87. Rb3 {[%clk 0:00:17.1]} 87... Rb4 {[%clk 0:00:14.5]} 88. Rc3
{[%clk 0:00:16.9]} 88... Kb5 {[%clk 0:00:15.2]} 89. Kd5 {[%clk 0:00:17.2]} 89...
Rd4+ {[%clk 0:00:15.4]} 90. Ke5 {[%clk 0:00:17.1]} 90... Kb4 {[%clk 0:00:15.9]}
91. Rc1 {[%clk 0:00:17.4]} 91... g3 {[%clk 0:00:14.9]} 92. Rb1+ {[%clk
0:00:17.5]} 92... Kc4 {[%clk 0:00:14.9]} 93. Rc1+ {[%clk 0:00:18.4]} 93... Kb5
{[%clk 0:00:15]} 94. Rb1+ {[%clk 0:00:18.7]} 94... Rb4 {[%clk 0:00:15.2]} 95.
Rg1 {[%clk 0:00:18.8]} 95... Rg4 {[%clk 0:00:15.4]} 96. Kf5 {[%clk 0:00:18.9]}
96... Rg8 {[%clk 0:00:16]} 97. Ke4 {[%clk 0:00:19.1]} 97... g2 {[%clk
0:00:16.3]} 98. Kd3 {[%clk 0:00:19.5]} 98... c4+ {[%clk 0:00:16.8]} 99. Kc3
{[%clk 0:00:19.7]} 99... Kc5 {[%clk 0:00:17.7]} 100. Kd2 {[%clk 0:00:20]} 100...
Kd4 {[%clk 0:00:17.3]} 101. Ke2 {[%clk 0:00:20.4]} 101... c3 {[%clk 0:00:17.6]}
102. Kf2 {[%clk 0:00:20.4]} 102... c2 {[%clk 0:00:17.9]} 103. Ke2 {[%clk
0:00:20.8]} 103... Kc3 {[%clk 0:00:18.3]} 104. Kf2 {[%clk 0:00:21.2]} 104... Kb2
{[%clk 0:00:18.4]} 105. Rxg2 {[%clk 0:00:22.1]} 105... Rxg2+ {[%clk 0:00:17.7]}
0-1

[Event "*** SCC Grand Prix: Titled Tuesday Blitz"]
[Site "Chess.com"]
[Date "2020.08.25"]
[Round "7"]
[White "ZenBull"]
[Black "Vamostodorecto"]
[Result "0-1"]
[WhiteElo "2131"]
[BlackElo "2327"]
[TimeControl "180+1"]
[EndTime "11:22:55 PDT"]
[Termination "Vamostodorecto won by checkmate"]

1. Nf3 {[%clk 0:03:00.9]} 1... d5 {[%clk 0:02:59.2]} 2. d4 {[%clk 0:03:00.2]}
2... Nc6 {[%clk 0:02:59.7]} 3. Bf4 {[%clk 0:02:58.6]} 3... Nf6 {[%clk
0:02:31.7]} 4. e3 {[%clk 0:02:58.1]} 4... e6 {[%clk 0:02:32.3]} 5. c4 {[%clk
0:02:56.6]} 5... Bb4+ {[%clk 0:02:28.8]} 6. Nc3 {[%clk 0:02:55.8]} 6... Ne4
{[%clk 0:02:25.1]} 7. Rc1 {[%clk 0:02:55]} 7... Qe7 {[%clk 0:02:19.7]} 8. Bd3
{[%clk 0:02:50]} 8... Nxc3 {[%clk 0:02:11.3]} 9. bxc3 {[%clk 0:02:49.1]} 9...
Ba3 {[%clk 0:02:12.2]} 10. Rc2 {[%clk 0:02:48.5]} 10... O-O {[%clk 0:02:04.8]}
11. O-O {[%clk 0:02:47.6]} 11... dxc4 {[%clk 0:02:04.7]} 12. Bxc4 {[%clk
0:02:47.2]} 12... Na5 {[%clk 0:02:05.6]} 13. Bd3 {[%clk 0:02:45.4]} 13... Bd7
{[%clk 0:02:06.5]} 14. Ne5 {[%clk 0:02:37.3]} 14... Ba4 {[%clk 0:02:05.7]} 15.
Qh5 {[%clk 0:02:21.4]} 15... g6 {[%clk 0:02:04.3]} 16. Nxg6 {[%clk 0:02:21.2]}
16... fxg6 {[%clk 0:01:59.6]} 17. Qxa5 {[%clk 0:02:19.7]} 17... Bxc2 {[%clk
0:01:58]} 18. Bxc2 {[%clk 0:02:20]} 18... Bd6 {[%clk 0:01:56.6]} 19. Bg3 {[%clk
0:02:13.9]} 19... Bxg3 {[%clk 0:01:49.3]} 20. hxg3 {[%clk 0:02:11.9]} 20... b6
{[%clk 0:01:48.9]} 21. Qe5 {[%clk 0:02:09.8]} 21... Qd6 {[%clk 0:01:40.9]} 22.
Qe4 {[%clk 0:02:09]} 22... Qd5 {[%clk 0:01:24.7]} 23. Qxd5 {[%clk 0:01:58]}
23... exd5 {[%clk 0:01:25.6]} 24. Bb3 {[%clk 0:01:56.1]} 24... c6 {[%clk
0:01:24.3]} 25. e4 {[%clk 0:01:52.9]} 25... Rad8 {[%clk 0:01:21.4]} 26. e5
{[%clk 0:01:52]} 26... Kf7 {[%clk 0:01:19.6]} 27. f4 {[%clk 0:01:51.1]} 27...
Ke6 {[%clk 0:01:20]} 28. Kf2 {[%clk 0:01:50.4]} 28... c5 {[%clk 0:01:18.9]} 29.
Ke3 {[%clk 0:01:49.5]} 29... c4 {[%clk 0:01:09.8]} 30. Bd1 {[%clk 0:01:49.2]}
30... b5 {[%clk 0:00:57.6]} 31. g4 {[%clk 0:01:49.3]} 31... a5 {[%clk
0:00:53.5]} 32. f5+ {[%clk 0:01:49.7]} 32... Ke7 {[%clk 0:00:49.4]} 33. f6+
{[%clk 0:01:46.1]} 33... Kf7 {[%clk 0:00:33.6]} 34. g5 {[%clk 0:01:43.6]} 34...
b4 {[%clk 0:00:33.2]} 35. Bg4 {[%clk 0:01:38.7]} 35... Rfe8 {[%clk 0:00:31.9]}
36. e6+ {[%clk 0:01:28.4]} 36... Rxe6+ {[%clk 0:00:31.6]} 37. Bxe6+ {[%clk
0:01:28]} 37... Kxe6 {[%clk 0:00:32.5]} 38. f7 {[%clk 0:01:27.1]} 38... Rf8
{[%clk 0:00:20.7]} 39. Rf6+ {[%clk 0:01:25.5]} 39... Ke7 {[%clk 0:00:20.3]} 40.
Ra6 {[%clk 0:01:16.3]} 40... bxc3 {[%clk 0:00:13.8]} 41. Rxa5 {[%clk 0:01:11.6]}
41... Rxf7 {[%clk 0:00:11.3]} 42. Rxd5 {[%clk 0:00:59.7]} 42... c2 {[%clk
0:00:08.4]} 43. Kd2 {[%clk 0:00:59.1]} 43... Rf2+ {[%clk 0:00:08.6]} 44. Kc1
{[%clk 0:00:59.2]} 44... Rxg2 {[%clk 0:00:06.9]} 45. a4 {[%clk 0:00:57.4]} 45...
Ke6 {[%clk 0:00:04]} 46. Rc5 {[%clk 0:00:53.4]} 46... Kd6 {[%clk 0:00:04.4]} 47.
a5 {[%clk 0:00:53.1]} 47... Rg1+ {[%clk 0:00:03.7]} 48. Kxc2 {[%clk 0:00:52.8]}
48... Ra1 {[%clk 0:00:04.6]} 49. Kc3 {[%clk 0:00:50.9]} 49... Ra4 {[%clk
0:00:02.9]} 50. Kc2 {[%clk 0:00:43.9]} 50... Ke6 {[%clk 0:00:02.9]} 51. Kb2
{[%clk 0:00:43.8]} 51... Kd6 {[%clk 0:00:03.2]} 52. Kc2 {[%clk 0:00:43.5]} 52...
Ke6 {[%clk 0:00:03.5]} 53. Kd2 {[%clk 0:00:42.9]} 53... Kd6 {[%clk 0:00:03.5]}
54. Ke3 {[%clk 0:00:38.2]} 54... Ke6 {[%clk 0:00:03.7]} 55. Ke4 {[%clk
0:00:38.1]} 55... Kd6 {[%clk 0:00:03.9]} 56. Rc8 {[%clk 0:00:27.7]} 56... Rxa5
{[%clk 0:00:03.5]} 57. Rxc4 {[%clk 0:00:27.8]} 57... Rxg5 {[%clk 0:00:03.6]} 58.
Ra4 {[%clk 0:00:27.6]} 58... Rg4+ {[%clk 0:00:03.7]} 59. Ke3 {[%clk 0:00:27.8]}
59... Rg3+ {[%clk 0:00:03.7]} 60. Kf4 {[%clk 0:00:27.8]} 60... Rh3 {[%clk
0:00:03.9]} 61. Ra5 {[%clk 0:00:25.3]} 61... Ke6 {[%clk 0:00:03.6]} 62. Kg4
{[%clk 0:00:22.5]} 62... Rh1 {[%clk 0:00:02.8]} 63. Kf4 {[%clk 0:00:21.1]} 63...
Rg1 {[%clk 0:00:02.9]} 64. Re5+ {[%clk 0:00:17]} 64... Kd6 {[%clk 0:00:01.5]}
65. Ra5 {[%clk 0:00:14.9]} 65... h5 {[%clk 0:00:02.4]} 66. Ra6+ {[%clk
0:00:14.4]} 66... Kd5 {[%clk 0:00:02.4]} 67. Ra4 {[%clk 0:00:13.7]} 67... Rg4+
{[%clk 0:00:02.5]} 68. Kf3 {[%clk 0:00:14.3]} 68... Rxd4 {[%clk 0:00:02.7]} 69.
Ra5+ {[%clk 0:00:14.7]} 69... Ke6 {[%clk 0:00:01.7]} 70. Ra6+ {[%clk 0:00:15.6]}
70... Kf5 {[%clk 0:00:01.9]} 71. Ra5+ {[%clk 0:00:16.4]} 71... Kf6 {[%clk
0:00:02.3]} 72. Ra6+ {[%clk 0:00:17]} 72... Kg5 {[%clk 0:00:02.6]} 73. Ra5+
{[%clk 0:00:17.9]} 73... Kh6 {[%clk 0:00:02.8]} 74. Ra8 {[%clk 0:00:17.5]} 74...
Rg4 {[%clk 0:00:03.3]} 75. Ra6 {[%clk 0:00:16.9]} 75... Kg5 {[%clk 0:00:03.7]}
76. Ra5+ {[%clk 0:00:17.1]} 76... Kh6 {[%clk 0:00:04]} 77. Ra1 {[%clk
0:00:17.3]} 77... Rg5 {[%clk 0:00:04.6]} 78. Kf4 {[%clk 0:00:16.8]} 78... Rf5+
{[%clk 0:00:05.5]} 79. Kg3 {[%clk 0:00:16.8]} 79... Rg5+ {[%clk 0:00:06.4]} 80.
Kh4 {[%clk 0:00:17.1]} 80... Rg4+ {[%clk 0:00:07.3]} 81. Kh3 {[%clk 0:00:17.7]}
81... Rd4 {[%clk 0:00:07.7]} 82. Ra5 {[%clk 0:00:17.1]} 82... Rd3+ {[%clk
0:00:07.7]} 83. Kh4 {[%clk 0:00:17.8]} 83... Rd4+ {[%clk 0:00:08.1]} 84. Kh3
{[%clk 0:00:17.9]} 84... h4 {[%clk 0:00:08.1]} 85. Kh2 {[%clk 0:00:18.6]} 85...
g5 {[%clk 0:00:07.3]} 86. Kh3 {[%clk 0:00:18.7]} 86... Kh5 {[%clk 0:00:07.5]}
87. Kh2 {[%clk 0:00:18.3]} 87... Rd3 {[%clk 0:00:07.6]} 88. Kg2 {[%clk
0:00:18.3]} 88... h3+ {[%clk 0:00:07.6]} 89. Kh2 {[%clk 0:00:18.6]} 89... Kh4
{[%clk 0:00:07.9]} 90. Ra4+ {[%clk 0:00:19.3]} 90... g4 {[%clk 0:00:07.9]} 91.
Ra8 {[%clk 0:00:20.2]} 91... Rd2+ {[%clk 0:00:08]} 92. Kg1 {[%clk 0:00:20.5]}
92... Kg3 {[%clk 0:00:08.4]} 93. Ra3+ {[%clk 0:00:19.3]} 93... Kh4 {[%clk
0:00:08.4]} 94. Ra8 {[%clk 0:00:19.9]} 94... Rg2+ {[%clk 0:00:08.3]} 95. Kh1
{[%clk 0:00:19.7]} 95... Rc2 {[%clk 0:00:09.2]} 96. Kg1 {[%clk 0:00:19.5]} 96...
Kg3 {[%clk 0:00:07.5]} 97. Ra3+ {[%clk 0:00:18.5]} 97... Kf4 {[%clk 0:00:08]}
98. Ra8 {[%clk 0:00:19.4]} 98... g3 {[%clk 0:00:06.8]} 99. Ra4+ {[%clk
0:00:18.7]} 99... Kf3 {[%clk 0:00:06.4]} 100. Ra3+ {[%clk 0:00:18.9]} 100... Kg4
{[%clk 0:00:06.9]} 101. Ra4+ {[%clk 0:00:19.2]} 101... Kf5 {[%clk 0:00:07]} 102.
Ra5+ {[%clk 0:00:19.4]} 102... Ke4 {[%clk 0:00:07.1]} 103. Ra4+ {[%clk
0:00:19.6]} 103... Kd5 {[%clk 0:00:06.6]} 104. Ra5+ {[%clk 0:00:19.6]} 104...
Kd4 {[%clk 0:00:06.3]} 105. Ra4+ {[%clk 0:00:19.5]} 105... Rc4 {[%clk 0:00:05]}
106. Ra1 {[%clk 0:00:17.7]} 106... Ke3 {[%clk 0:00:04.5]} 107. Ra3+ {[%clk
0:00:17.2]} 107... Kf4 {[%clk 0:00:04.4]} 108. Ra1 {[%clk 0:00:16.7]} 108... Re4
{[%clk 0:00:03.4]} 109. Rf1+ {[%clk 0:00:15.7]} 109... Kg4 {[%clk 0:00:03.4]}
110. Ra1 {[%clk 0:00:16.6]} 110... h2+ {[%clk 0:00:02.6]} 111. Kg2 {[%clk
0:00:15.2]} 111... Re2+ {[%clk 0:00:01.5]} 112. Kh1 {[%clk 0:00:15.2]} 112...
Rf2 {[%clk 0:00:02.4]} 113. Rb1 {[%clk 0:00:13.7]} 113... Kh3 {[%clk 0:00:03.3]}
114. Rb3 {[%clk 0:00:13.2]} 114... Rf1# {[%clk 0:00:03.3]} 0-1

[Event "*** SCC Grand Prix: Titled Tuesday Blitz"]
[Site "Chess.com"]
[Date "2020.08.25"]
[Round "8"]
[White "TomasKapitanchuk"]
[Black "SzMM19"]
[Result "0-1"]
[WhiteElo "2393"]
[BlackElo "2524"]
[TimeControl "180+1"]
[EndTime "11:32:00 PDT"]
[Termination "SzMM19 won by checkmate"]

1. e4 {[%clk 0:03:00.9]} 1... c5 {[%clk 0:02:59.8]} 2. Nf3 {[%clk 0:03:01.3]}
2... a6 {[%clk 0:03:00]} 3. c4 {[%clk 0:03:00.4]} 3... Nc6 {[%clk 0:02:59.9]} 4.
d4 {[%clk 0:03:00.3]} 4... cxd4 {[%clk 0:03:00.8]} 5. Nxd4 {[%clk 0:03:01]} 5...
e5 {[%clk 0:03:01.5]} 6. Nc2 {[%clk 0:03:00.1]} 6... Nf6 {[%clk 0:03:01.7]} 7.
Nc3 {[%clk 0:03:00.6]} 7... Bc5 {[%clk 0:03:02]} 8. Be2 {[%clk 0:02:59.9]} 8...
O-O {[%clk 0:03:01.4]} 9. O-O {[%clk 0:03:00.2]} 9... d6 {[%clk 0:03:01.8]} 10.
Be3 {[%clk 0:02:57.6]} 10... Bxe3 {[%clk 0:03:00.9]} 11. Nxe3 {[%clk 0:02:58]}
11... Be6 {[%clk 0:03:01.5]} 12. Ned5 {[%clk 0:02:57.5]} 12... Bxd5 {[%clk
0:03:00.8]} 13. exd5 {[%clk 0:02:56.7]} 13... Nd4 {[%clk 0:03:00.6]} 14. Rc1
{[%clk 0:02:54.5]} 14... Rc8 {[%clk 0:03:00.4]} 15. Bd3 {[%clk 0:02:50.5]} 15...
Qa5 {[%clk 0:02:54]} 16. Re1 {[%clk 0:02:46.4]} 16... b5 {[%clk 0:02:52.8]} 17.
cxb5 {[%clk 0:02:42.7]} 17... axb5 {[%clk 0:02:53.7]} 18. b3 {[%clk 0:02:17.8]}
18... b4 {[%clk 0:02:51.9]} 19. Na4 {[%clk 0:02:18.1]} 19... Rxc1 {[%clk
0:02:39]} 20. Qxc1 {[%clk 0:02:19]} 20... Qxd5 {[%clk 0:02:39.3]} 21. Qc7 {[%clk
0:02:18.9]} 21... Nf3+ {[%clk 0:02:35.1]} 22. gxf3 {[%clk 0:02:19.8]} 22... Qxd3
{[%clk 0:02:35]} 23. Re3 {[%clk 0:02:20.1]} 23... Qd1+ {[%clk 0:02:34.4]} 24.
Kg2 {[%clk 0:02:20.6]} 24... Nd5 {[%clk 0:02:34.7]} 25. Qd7 {[%clk 0:02:00.1]}
25... Nf4+ {[%clk 0:02:25.9]} 26. Kg3 {[%clk 0:02:00.1]} 26... Qg1+ {[%clk
0:02:25.5]} 27. Kh4 {[%clk 0:01:59.9]} 27... g5# {[%clk 0:02:22.8]} 0-1

[Event "*** SCC Grand Prix: Titled Tuesday Blitz"]
[Site "Chess.com"]
[Date "2020.08.25"]
[Round "8"]
[White "Maksimus1998"]
[Black "XDPS"]
[Result "0-1"]
[WhiteElo "2598"]
[BlackElo "2734"]
[TimeControl "180+1"]
[EndTime "11:32:12 PDT"]
[Termination "XDPS won by resignation"]

1. e4 {[%clk 0:03:00.9]} 1... e5 {[%clk 0:02:58.4]} 2. Nf3 {[%clk 0:02:57.9]}
2... Nc6 {[%clk 0:02:58.5]} 3. Bb5 {[%clk 0:02:55.9]} 3... a6 {[%clk 0:02:58.8]}
4. Ba4 {[%clk 0:02:55.7]} 4... d6 {[%clk 0:02:56.5]} 5. O-O {[%clk 0:02:53.3]}
5... Bd7 {[%clk 0:02:55.9]} 6. Re1 {[%clk 0:02:51.9]} 6... Nf6 {[%clk
0:02:53.7]} 7. c3 {[%clk 0:02:51.2]} 7... g6 {[%clk 0:02:53.7]} 8. d4 {[%clk
0:02:49.9]} 8... Bg7 {[%clk 0:02:54.3]} 9. d5 {[%clk 0:02:48.9]} 9... Ne7 {[%clk
0:02:54.3]} 10. Bxd7+ {[%clk 0:02:49.8]} 10... Qxd7 {[%clk 0:02:55.2]} 11. c4
{[%clk 0:02:48.8]} 11... O-O {[%clk 0:02:11.7]} 12. Nc3 {[%clk 0:02:47.2]} 12...
h6 {[%clk 0:02:05.3]} 13. c5 {[%clk 0:02:35.3]} 13... Nh5 {[%clk 0:02:03]} 14.
cxd6 {[%clk 0:02:28.3]} 14... cxd6 {[%clk 0:02:03]} 15. Na4 {[%clk 0:02:22.9]}
15... Nc8 {[%clk 0:01:53.1]} 16. Be3 {[%clk 0:02:07.6]} 16... b5 {[%clk
0:01:53.1]} 17. Nd2 {[%clk 0:02:08.2]} 17... bxa4 {[%clk 0:01:52.7]} 0-1

[Event "*** SCC Grand Prix: Titled Tuesday Blitz"]
[Site "Chess.com"]
[Date "2020.08.25"]
[Round "8"]
[White "rasmussvane"]
[Black "Ali_rastbod"]
[Result "1-0"]
[WhiteElo "2856"]
[BlackElo "2678"]
[TimeControl "180+1"]
[EndTime "11:32:14 PDT"]
[Termination "rasmussvane won by resignation"]

1. Nf3 {[%clk 0:03:00.9]} 1... d5 {[%clk 0:02:59.7]} 2. g3 {[%clk 0:03:01.2]}
2... Bg4 {[%clk 0:03:00.1]} 3. Bg2 {[%clk 0:03:01.7]} 3... Nd7 {[%clk
0:03:00.6]} 4. h3 {[%clk 0:03:02.1]} 4... Bh5 {[%clk 0:03:00.2]} 5. O-O {[%clk
0:03:02.5]} 5... c6 {[%clk 0:03:00.2]} 6. d4 {[%clk 0:03:02.9]} 6... e6 {[%clk
0:02:58.7]} 7. c4 {[%clk 0:03:03.3]} 7... f5 {[%clk 0:02:58.6]} 8. Qb3 {[%clk
0:02:54.8]} 8... Qb6 {[%clk 0:02:40.3]} 9. Qe3 {[%clk 0:02:53.9]} 9... Bf7
{[%clk 0:01:54.2]} 10. Ng5 {[%clk 0:02:50.5]} 10... Ke7 {[%clk 0:01:54.1]} 11.
cxd5 {[%clk 0:02:43.6]} 11... cxd5 {[%clk 0:01:55]} 12. Nc3 {[%clk 0:02:26]}
12... Ngf6 {[%clk 0:01:53]} 13. Nxd5+ {[%clk 0:02:09.6]} 13... Nxd5 {[%clk
0:01:52.6]} 14. Bxd5 {[%clk 0:02:10.5]} 14... h6 {[%clk 0:01:53.1]} 15. Nxf7
{[%clk 0:02:10.8]} 15... Kxf7 {[%clk 0:01:53.6]} 16. Bb3 {[%clk 0:02:09.3]}
16... Nf6 {[%clk 0:01:53.9]} 17. Qf3 {[%clk 0:02:05.3]} 17... Rd8 {[%clk
0:01:49.9]} 18. Qxf5 {[%clk 0:02:00.3]} 1-0

[Event "*** SCC Grand Prix: Titled Tuesday Blitz"]
[Site "Chess.com"]
[Date "2020.08.25"]
[Round "8"]
[White "monalize"]
[Black "IMAghasiyevKamal"]
[Result "0-1"]
[WhiteElo "2283"]
[BlackElo "2430"]
[TimeControl "180+1"]
[EndTime "11:32:31 PDT"]
[Termination "IMAghasiyevKamal won by resignation"]

1. e4 {[%clk 0:02:59.1]} 1... e5 {[%clk 0:02:58.6]} 2. Nf3 {[%clk 0:02:57.6]}
2... Nc6 {[%clk 0:02:58.7]} 3. d4 {[%clk 0:02:56.7]} 3... exd4 {[%clk
0:02:58.3]} 4. Nxd4 {[%clk 0:02:56.2]} 4... Bc5 {[%clk 0:02:58]} 5. Nb3 {[%clk
0:02:54.4]} 5... Bb6 {[%clk 0:02:57.4]} 6. Nc3 {[%clk 0:02:51.4]} 6... Nf6
{[%clk 0:02:56.5]} 7. a4 {[%clk 0:02:46.5]} 7... a5 {[%clk 0:02:50]} 8. Nd5
{[%clk 0:02:44.8]} 8... Nxd5 {[%clk 0:02:42.1]} 9. exd5 {[%clk 0:02:44]} 9...
Qf6 {[%clk 0:02:37.2]} 10. Qe2+ {[%clk 0:02:31.3]} 10... Ne7 {[%clk 0:02:31.9]}
11. c4 {[%clk 0:02:17.8]} 11... d6 {[%clk 0:02:28.9]} 12. h4 {[%clk 0:02:09.4]}
12... h6 {[%clk 0:01:36.9]} 13. Bg5 {[%clk 0:02:00.2]} 13... hxg5 {[%clk
0:01:35.1]} 14. hxg5 {[%clk 0:01:59.2]} 14... Qxf2+ {[%clk 0:01:34.9]} 0-1

[Event "*** SCC Grand Prix: Titled Tuesday Blitz"]
[Site "Chess.com"]
[Date "2020.08.25"]
[Round "8"]
[White "Skatchkov_V"]
[Black "GOGIEFF"]
[Result "0-1"]
[WhiteElo "2695"]
[BlackElo "2858"]
[TimeControl "180+1"]
[EndTime "11:32:41 PDT"]
[Termination "GOGIEFF won by resignation"]

1. d4 {[%clk 0:03:00.8]} 1... Nf6 {[%clk 0:02:59.1]} 2. c4 {[%clk 0:03:01.4]}
2... e6 {[%clk 0:02:59.5]} 3. Nf3 {[%clk 0:03:02]} 3... d5 {[%clk 0:02:59]} 4.
g3 {[%clk 0:03:00]} 4... dxc4 {[%clk 0:02:54.3]} 5. Bg2 {[%clk 0:03:00.1]} 5...
Bb4+ {[%clk 0:02:54.8]} 6. Bd2 {[%clk 0:02:59.1]} 6... a5 {[%clk 0:02:54.5]} 7.
O-O {[%clk 0:02:57.1]} 7... O-O {[%clk 0:02:41.7]} 8. e3 {[%clk 0:02:51.5]} 8...
Ra6 {[%clk 0:02:04.4]} 9. a4 {[%clk 0:02:34]} 9... c5 {[%clk 0:01:57.9]} 10. Qc2
{[%clk 0:02:30.3]} 10... cxd4 {[%clk 0:01:42.1]} 11. Nxd4 {[%clk 0:02:29.5]}
11... e5 {[%clk 0:01:39.9]} 12. Nb5 {[%clk 0:02:29.4]} 12... Be6 {[%clk
0:01:33.9]} 13. Rd1 {[%clk 0:02:22.5]} 13... Qe7 {[%clk 0:01:32.8]} 14. N1a3
{[%clk 0:02:10]} 14... Rc8 {[%clk 0:01:31.5]} 15. Rac1 {[%clk 0:02:10.2]} 15...
h5 {[%clk 0:01:31.5]} 16. b3 {[%clk 0:01:55.8]} 16... Bxa3 {[%clk 0:01:28]} 0-1